[Event "Croatian-ch Youth U13 2022"]
[Site "Trogir"]
[Date "2022.06.26"]
[Round "8.1"]
[White "Poljan, Max"]
[Black "Tadic, Jure"]
[Result "1-0"]
[ECO "C45"]
[WhiteElo "1618"]
[BlackElo "1565"]
[Annotator "NA RC"]
[PlyCount "135"]
[EventDate "2022.06.22"]
[EventType "swiss"]
[EventCountry "CRO"]
[SourceTitle "playchess.com"]
[Source "ChessBase"]
[SourceQuality "1"]
[TimeControl "5400+30"]

1. e4 {[%emt 0:00:03]} e5 {[%emt 0:00:11]} 2. Nf3 {[%emt 0:00:05]} Nc6 {[%emt 0:00:09]} 3. d4 {[%emt 0:00:03]} exd4 {[%emt 0:00:16]} 4. Nxd4 {[%emt 0:00:04]} Bc5 {[%emt 0:00:20]} 5. Nb3 {[%emt 0:00:04]} Bb6 {[%emt 0:00:11]} 6. Nc3 {[%emt 0:00:04]} a5 {[%emt 0:00:29]} 7. Bb5 {[%emt 0:01:33]} Nge7 {[%emt 0:03:59]} 8. Bg5 {[%emt 0:01:08]} f6 {[%emt 0:05:17]} 9. Bh4 {[%emt 0:00:09]} O-O {[%emt 0:00:44]} 10. Qe2 {[%emt 0:03:39]} Ne5 {[%emt 0:03:16]} 11. f4 {[%emt 0:02:03]} N5g6 {[%emt 0:00:29]} 12. Bg3 {[%emt 0:00:27]} c6 {[%emt 0:00:31]} 13. Bc4+ {[%emt 0:00:49]} d5 {[%emt 0:01:17]} 14. exd5 {[%emt 0:02:13]} Nxd5 {[%emt 0:06:53]} 15. Nxd5 {[%emt 0:01:31]} cxd5 {[%emt 0:00:10]} 16. O-O-O {[%emt 0:01:00]} Qc7 {[%emt 0:23:48]} 17. Rxd5 {[%emt 0:23:19]} Kh8 {[%emt 0:01:56]} 18. Nd2 {[%emt 0:25:12]} f5 {[%emt 0:11:09]} 19. h4 {[%emt 0:07:02]} Ne7 {[%emt 0:13:39]} 20. Re5 {[%emt 0:03:08]} Nc6 {[%emt 0:00:16]} 21. Re8 {[%emt 0:00:12]} Bd7 {[%emt 0:00:46]} 22. Rxa8 Rxa8 {[%emt 0:00:06]} 23. Nf3 {[%emt 0:01:05]} Nd4 {[%emt 0:05:51]} 24. Nxd4 {[%emt 0:00:39]} Bxd4 {[%emt 0:00:02]} 25. Qd3 {[%emt 0:00:51]} Bf6 {[%emt 0:00:20]} 26. Rd1 {[%emt 0:13:32]} Rd8 {[%emt 0:04:24]} 27. Qb3 {[%emt 0:04:54]} b5 {[%emt 0:10:31]} 28. Bxb5 {[%emt 0:02:45]} Bc8 {[%emt 0:05:57]} 29. Rxd8+ {[%emt 0:00:48]} Qxd8 {[%emt 0:00:06]} 30. Bf2 {[%emt 0:01:13]} Bxh4 {[%emt 0:01:03]} 31. g3 {[%emt 0:01:46]} Bf6 {[%emt 0:00:12]} 32. Qd3 {[%emt 0:00:43]} Qe7 {[%emt 0:00:36]} 33. Qe3 {[%emt 0:00:43]} Qf8 {[%emt 0:01:16]} 34. Qe8 {[%emt 0:01:02]} Qxe8 {[%emt 0:00:09]} 35. Bxe8 {[%emt 0:00:04]} Bd8 {[%emt 0:00:38]} 36. Bf7 {[%emt 0:00:47]} h6 {[%emt 0:00:49]} 37. Bg6 {[%emt 0:00:18]} Kg8 {[%emt 0:00:25]} 38. Bc5 {[%emt 0:01:09]} Bf6 {[%emt 0:00:39]} 39. Bb6 {[%emt 0:01:00]} a4 {[%emt 0:00:24]} 40. Bc5 {[%emt 0:01:38]} Bd7 {[%emt 0:00:06]} 41. c3 {[%emt 0:01:11]} Bd8 {[%emt 0:00:35]} 42. b3 {[%emt 0:00:20]} axb3 {[%emt 0:00:37]} 43. axb3 {[%emt 0:00:08]} Be6 {[%emt 0:00:51]} 44. Kc2 {[%emt 0:00:10]} h5 {[%emt 0:00:26]} 45. Bxh5 {[%emt 0:00:18]} Kh7 {[%emt 0:00:00]} 46. Bf3 {[%emt 0:01:29]} Bc7 {[%emt 0:00:20]} 47. Bf2 {[%emt 0:01:04]} Kg6 {[%emt 0:00:16]} 48. c4 {[%emt 0:00:26]} Ba5 {[%emt 0:00:41]} 49. Bd5 {[%emt 0:00:24]} Bd7 {[%emt 0:00:46]} 50. Kd1 {[%emt 0:00:31]} Bb4 {[%emt 0:00:33]} 51. Be1 {[%emt 0:00:21]} Bd6 {[%emt 0:00:38]} 52. b4 {[%emt 0:00:20]} Ba4+ {[%emt 0:00:18]} 53. Ke2 {[%emt 0:00:17]} Kh5 {[%emt 0:00:59]} 54. Bf3+ {[%emt 0:00:21]} Kg6 {[%emt 0:00:11]} 55. c5 {[%emt 0:00:54]} Bc7 {[%emt 0:00:36]} 56. Kd2 {[%emt 0:00:56]} Kf7 {[%emt 0:00:26]} 57. Bd5+ {[%emt 0:00:20]} Ke7 {[%emt 0:00:15]} 58. Kc3 {[%emt 0:00:18]} Be8 {[%emt 0:00:46]} 59. Kc4 {[%emt 0:00:29]} Kd8 {[%emt 0:00:35]} 60. Be6 {[%emt 0:00:37]} g6 {[%emt 0:00:19]} 61. b5 {[%emt 0:00:15]} Ke7 {[%emt 0:00:27]} 62. Bd5 {[%emt 0:00:20]} Kd8 {[%emt 0:00:27]} 63. b6 {[%emt 0:00:47]} Bb8 {[%emt 0:00:18]} 64. c6 {[%emt 0:00:22]} Kc8 {[%emt 0:00:16]} 65. Bb4 {[%emt 0:00:31]} g5 {[%emt 0:00:48]} 66. fxg5 {[%emt 0:00:55]} Bxg3 {[%emt 0:00:09]} 67. Kb5 {[%emt 0:00:21]} f4 {[%emt 0:00:42]} 68. b7+ {[%emt 0:00:10]} 1-0

[Event "Croatian-ch Youth U13 2022"]
[Site "Trogir"]
[Date "2022.06.26"]
[Round "8.2"]
[White "Mimica, Matija"]
[Black "Pehar, Borna"]
[Result "0-1"]
[ECO "E54"]
[WhiteElo "1421"]
[BlackElo "1756"]
[Annotator "NA RC"]
[PlyCount "49"]
[EventDate "2022.06.22"]
[EventType "swiss"]
[EventCountry "CRO"]
[SourceTitle "playchess.com"]
[Source "ChessBase"]
[SourceQuality "1"]
[TimeControl "5400+30"]

1. d4 {[%emt 0:00:10]} Nf6 {[%emt 0:00:29]} 2. c4 {[%emt 0:01:09]} c5 {[%emt 0:00:33]} 3. e3 {[%emt 0:00:30]} cxd4 {[%emt 0:01:17]} 4. exd4 {[%emt 0:00:26]} d5 {[%emt 0:02:04]} 5. Nc3 {[%emt 0:01:52]} e6 {[%emt 0:01:14]} 6. Nf3 {[%emt 0:01:11]} Bb4 {[%emt 0:00:30]} 7. Bd3 {[%emt 0:01:17]} O-O {[%emt 0:01:43]} 8. O-O {[%emt 0:01:31]} dxc4 {[%emt 0:02:41]} 9. Bxc4 {[%emt 0:00:11]} b6 {[%emt 0:00:47]} 10. Bg5 {[%emt 0:04:28]} h6 {[%emt 0:00:48]} 11. Bh4 {[%emt 0:00:10]} Bb7 {[%emt 0:03:44]} 12. a3 {[%emt 0:00:46]} Be7 {[%emt 0:00:25]} 13. Re1 {[%emt 0:01:56]} Nc6 {[%emt 0:03:49]} 14. Qd2 {[%emt 0:06:10]} Na5 {[%emt 0:00:56]} 15. Ba2 {[%emt 0:01:24]} Bxf3 {[%emt 0:01:44]} 16. gxf3 {[%emt 0:00:06]} Qd7 {[%emt 0:03:10]} 17. Bg3 {[%emt 0:00:56]} Rfd8 {[%emt 0:00:54]} 18. Rad1 {[%emt 0:00:24]} Nc6 {[%emt 0:00:59]} 19. d5 {[%emt 0:02:25]} exd5 {[%emt 0:08:28]} 20. Nxd5 {[%emt 0:00:12]} Nxd5 {[%emt 0:00:22]} 21. Qxd5 {[%emt 0:00:15]} Qe8 {[%emt 0:19:56]} 22. Qh5 {[%emt 0:28:18]} Rxd1 {[%emt 0:11:00]} 23. Rxd1 {[%emt 0:00:46]} Bf6 {[%emt 0:00:16]} 24. Qb5 {[%emt 0:16:52]} Nd4 {[%emt 0:09:41]} 25. Qxe8+ {[%emt 0:05:47]} 0-1

[Event "Croatian-ch Youth U13 2022"]
[Site "Trogir"]
[Date "2022.06.26"]
[Round "8.3"]
[White "Kucelj, Kevin"]
[Black "Petrus, Adrian"]
[Result "1/2-1/2"]
[ECO "B04"]
[WhiteElo "1398"]
[BlackElo "1526"]
[Annotator "NA RC"]
[PlyCount "209"]
[EventDate "2022.06.22"]
[EventType "swiss"]
[EventCountry "CRO"]
[SourceTitle "playchess.com"]
[Source "ChessBase"]
[SourceQuality "1"]
[TimeControl "5400+30"]

1. e4 {[%emt 0:00:02]} Nf6 {[%emt 0:00:04]} 2. e5 {[%emt 0:00:04]} Nd5 {[%emt 0:00:03]} 3. d4 {[%emt 0:00:07]} d6 {[%emt 0:00:08]} 4. Nf3 {[%emt 0:00:57]} g6 {[%emt 0:00:17]} 5. c4 {[%emt 0:00:38]} Nb6 {[%emt 0:00:07]} 6. Be2 {[%emt 0:02:52]} Bg7 {[%emt 0:01:33]} 7. Bf4 {[%emt 0:02:25]} O-O {[%emt 0:00:53]} 8. O-O {[%emt 0:00:29]} Nc6 {[%emt 0:03:52]} 9. exd6 {[%emt 0:06:27]} cxd6 {[%emt 0:00:37]} 10. Nc3 {[%emt 0:02:27]} Bg4 {[%emt 0:01:23]} 11. d5 {[%emt 0:01:48]} Bxf3 {[%emt 0:03:49]} 12. Bxf3 {[%emt 0:00:47]} Ne5 {[%emt 0:02:43]} 13. Bxe5 {[%emt 0:02:37]} Bxe5 {[%emt 0:00:20]} 14. Qd3 {[%emt 0:02:57]} Rc8 {[%emt 0:02:15]} 15. b3 {[%emt 0:00:30]} Nd7 {[%emt 0:00:32]} 16. Rac1 {[%emt 0:02:45]} Nc5 {[%emt 0:00:37]} 17. Qe3 {[%emt 0:02:00]} Qa5 {[%emt 0:03:25]} 18. Rc2 {[%emt 0:03:29]} a6 {[%emt 0:04:51]} 19. Rb1 {[%emt 0:03:57]} Qb4 {[%emt 0:17:02]} 20. g4 {[%emt 0:07:41]} b5 {[%emt 0:04:15]} 21. Be2 {[%emt 0:03:48]} bxc4 {[%emt 0:06:31]} 22. bxc4 {[%emt 0:00:28]} Qa5 {[%emt 0:00:57]} 23. f4 {[%emt 0:02:41]} Bxc3 {[%emt 0:01:29]} 24. Qxc3 {[%emt 0:00:24]} Qxc3 {[%emt 0:00:22]} 25. Rxc3 {[%emt 0:00:06]} Rb8 {[%emt 0:00:18]} 26. Rcc1 {[%emt 0:01:14]} Kg7 {[%emt 0:03:19]} 27. Kg2 {[%emt 0:02:33]} h6 {[%emt 0:03:02]} 28. h3 {[%emt 0:08:30]} f6 {[%emt 0:01:07]} 29. Kf3 {[%emt 0:01:26]} Kf7 {[%emt 0:01:20]} 30. f5 {[%emt 0:02:12]} g5 {[%emt 0:00:21]} 31. Ke3 {[%emt 0:04:37]} Rfc8 {[%emt 0:00:41]} 32. Bd3 {[%emt 0:03:42]} Ke8 {[%emt 0:00:21]} 33. Rxb8 {[%emt 0:00:41]} Rxb8 {[%emt 0:00:06]} 34. Rb1 {[%emt 0:00:18]} Rxb1 {[%emt 0:00:06]} 35. Bxb1 {[%emt 0:00:03]} Kd7 {[%emt 0:00:18]} 36. Kd4 {[%emt 0:01:04]} Kc7 {[%emt 0:00:19]} 37. Kc3 {[%emt 0:00:39]} Kb6 {[%emt 0:00:31]} 38. Bc2 {[%emt 0:03:41]} Ka5 {[%emt 0:00:34]} 39. a3 {[%emt 0:00:31]} Nd7 {[%emt 0:00:22]} 40. Kd4 {[%emt 0:01:25]} Kb6 {[%emt 0:00:07]} 41. Ba4 {[%emt 0:03:40]} Ne5 {[%emt 0:00:29]} 42. Bd1 {[%emt 0:00:25]} Nf7 {[%emt 0:01:16]} 43. Bc2 {[%emt 0:01:22]} Nd8 {[%emt 0:00:06]} 44. Bd1 {[%emt 0:00:42]} Nb7 {[%emt 0:00:07]} 45. Bc2 {[%emt 0:00:47]} Nc5 {[%emt 0:00:06]} 46. Bd1 {[%emt 0:00:28]} Nd7 {[%emt 0:00:21]} 47. Bc2 {[%emt 0:00:15]} Ne5 {[%emt 0:00:08]} 48. Bd1 {[%emt 0:00:04]} a5 {[%emt 0:00:08]} 49. a4 {[%emt 0:00:21]} Nd7 {[%emt 0:00:17]} 50. Bc2 {[%emt 0:00:16]} Ka6 {[%emt 0:00:42]} 51. Bb3 {[%emt 0:00:47]} Kb7 {[%emt 0:00:08]} 52. Bc2 {[%emt 0:00:28]} Kc7 {[%emt 0:00:08]} 53. Bb3 {[%emt 0:00:18]} Kb6 {[%emt 0:00:08]} 54. Bc2 {[%emt 0:00:39]} Nc5 {[%emt 0:02:30]} 55. Bd1 {[%emt 0:00:24]} Na6 {[%emt 0:00:19]} 56. Bb3 {[%emt 0:00:40]} Nb4 {[%emt 0:00:49]} 57. Bd1 {[%emt 0:00:52]} Na6 {[%emt 0:03:03]} 58. Bc2 {[%emt 0:01:20]} Nc7 {[%emt 0:00:07]} 59. Bd1 {[%emt 0:00:55]} Ne8 {[%emt 0:00:11]} 60. Bc2 {[%emt 0:00:43]} Ng7 {[%emt 0:00:30]} 61. Bb3 {[%emt 0:00:41]} h5 {[%emt 0:00:52]} 62. Bc2 {[%emt 0:00:25]} hxg4 {[%emt 0:00:07]} 63. hxg4 {[%emt 0:00:06]} Ne8 {[%emt 0:00:09]} 64. Bb3 {[%emt 0:00:08]} Nc7 {[%emt 0:00:06]} 65. Bc2 {[%emt 0:00:20]} Na6 {[%emt 0:00:08]} 66. Bd1 {[%emt 0:00:19]} Nc5 {[%emt 0:00:10]} 67. Bc2 {[%emt 0:00:09]} Kc7 {[%emt 0:00:28]} 68. Bd1 {[%emt 0:00:35]} Kb7 {[%emt 0:00:16]} 69. Bc2 {[%emt 0:00:18]} Nd7 {[%emt 0:00:04]} 70. Bb3 {[%emt 0:00:23]} Nc5 {[%emt 0:00:10]} 71. Bc2 {[%emt 0:00:10]} Ka6 {[%emt 0:00:11]} 72. Bd1 {[%emt 0:00:10]} Kb6 {[%emt 0:00:03]} 73. Bc2 {[%emt 0:00:09]} Nd7 {[%emt 0:00:03]} 74. Bb3 {[%emt 0:00:10]} Kc7 {[%emt 0:01:12]} 75. Bc2 {[%emt 0:00:17]} Kb6 {[%emt 0:00:40]} 76. Bb3 {[%emt 0:00:05]} Nb8 {[%emt 0:00:03]} 77. Bd1 {[%emt 0:00:13]} Na6 {[%emt 0:00:01]} 78. Bc2 {[%emt 0:00:16]} Kc7 {[%emt 0:00:03]} 79. Bd1 {[%emt 0:00:22]} Nb4 {[%emt 0:00:11]} 80. Bb3 {[%emt 0:00:22]} Kb6 {[%emt 0:00:05]} 81. Bd1 {[%emt 0:00:18]} Na2 {[%emt 0:00:09]} 82. Bb3 {[%emt 0:00:23]} Nc1 {[%emt 0:02:55]} 83. Bd1 {[%emt 0:00:32]} Na2 {[%emt 0:00:19]} 84. Bb3 {[%emt 0:00:12]} Nb4 {[%emt 0:00:02]} 85. Bd1 {[%emt 0:00:19]} Na6 {[%emt 0:00:10]} 86. Bc2 {[%emt 0:00:24]} Nc5 {[%emt 0:00:02]} 87. Bd1 {[%emt 0:00:11]} Nd7 {[%emt 0:00:06]} 88. Bc2 {[%emt 0:00:19]} Ne5 {[%emt 0:00:10]} 89. Bd1 {[%emt 0:00:13]} Nf7 {[%emt 0:00:06]} 90. Bc2 {[%emt 0:00:14]} Nh6 {[%emt 0:00:10]} 91. Bd1 {[%emt 0:00:11]} Nf7 {[%emt 0:00:20]} 92. Bc2 {[%emt 0:00:10]} Nd8 {[%emt 0:00:01]} 93. Bb3 {[%emt 0:00:22]} Nb7 {[%emt 0:00:06]} 94. Bd1 {[%emt 0:00:13]} Nc5 {[%emt 0:00:05]} 95. Bc2 {[%emt 0:00:08]} Na6 {[%emt 0:00:01]} 96. Bd1 {[%emt 0:00:21]} Kb7 {[%emt 0:00:24]} 97. Bc2 {[%emt 0:00:47]} Nb4 {[%emt 0:00:13]} 98. Bb3 {[%emt 0:00:10]} Kb6 {[%emt 0:00:07]} 99. Bd1 {[%emt 0:00:33]} Na6 {[%emt 0:00:20]} 100. Bc2 {[%emt 0:00:17]} Kc7 {[%emt 0:00:09]} 101. Bd1 {[%emt 0:01:55]} Nb4 {[%emt 0:00:21]} 102. Bb3 {[%emt 0:00:26]} Kb6 {[%emt 0:00:05]} 103. Bd1 {[%emt 0:00:14]} Na2 {[%emt 0:00:04]} 104. Bb3 {[%emt 0:00:07]} Nc1 {[%emt 0:00:47]} 105. Bd1 {[%emt 0:00:08]} 1/2-1/2

[Event "Croatian-ch Youth U13 2022"]
[Site "Trogir"]
[Date "2022.06.26"]
[Round "8.4"]
[White "Horvat, Ivan"]
[Black "Mandaric, Duje"]
[Result "1-0"]
[ECO "B18"]
[WhiteElo "1290"]
[BlackElo "1333"]
[Annotator "NA RC"]
[PlyCount "69"]
[EventDate "2022.06.22"]
[EventType "swiss"]
[EventCountry "CRO"]
[SourceTitle "playchess.com"]
[Source "ChessBase"]
[SourceQuality "1"]
[TimeControl "5400+30"]

1. e4 {[%emt 0:00:02]} c6 {[%emt 0:00:09]} 2. d4 {[%emt 0:00:05]} d5 {[%emt 0:00:05]} 3. Nc3 {[%emt 0:00:16]} dxe4 {[%emt 0:00:13]} 4. Nxe4 {[%emt 0:00:03]} Bf5 {[%emt 0:00:12]} 5. Ng3 {[%emt 0:00:11]} Bg6 {[%emt 0:00:08]} 6. Nf3 {[%emt 0:00:07]} Nd7 {[%emt 0:00:11]} 7. Bc4 {[%emt 0:00:11]} e6 {[%emt 0:01:32]} 8. O-O {[%emt 0:00:22]} h6 {[%emt 0:00:44]} 9. Bf4 {[%emt 0:00:42]} Ngf6 {[%emt 0:01:11]} 10. Bb3 {[%emt 0:00:47]} Be7 {[%emt 0:00:38]} 11. Re1 {[%emt 0:00:36]} O-O {[%emt 0:01:05]} 12. Qe2 {[%emt 0:01:29]} Nd5 {[%emt 0:01:10]} 13. Bd2 {[%emt 0:01:11]} N7f6 {[%emt 0:01:24]} 14. Rad1 {[%emt 0:01:55]} a5 {[%emt 0:04:15]} 15. a4 {[%emt 0:05:25]} Qc7 {[%emt 0:07:14]} 16. c4 {[%emt 0:07:13]} Nb6 {[%emt 0:00:48]} 17. Bc3 {[%emt 0:01:57]} Rfd8 {[%emt 0:01:17]} 18. Nh4 {[%emt 0:16:54]} Bh7 {[%emt 0:02:58]} 19. Nhf5 {[%emt 0:01:34]} Bxf5 {[%emt 0:02:04]} 20. Nxf5 {[%emt 0:00:48]} Bb4 {[%emt 0:00:22]} 21. Ng3 {[%emt 0:02:22]} Qe7 {[%emt 0:04:13]} 22. Ne4 {[%emt 0:07:08]} Bxc3 {[%emt 0:06:41]} 23. bxc3 {[%emt 0:01:53]} Nxe4 {[%emt 0:03:35]} 24. Qxe4 {[%emt 0:00:53]} Ra7 {[%emt 0:01:47]} 25. d5 {[%emt 0:01:26]} cxd5 {[%emt 0:02:10]} 26. cxd5 {[%emt 0:00:40]} e5 {[%emt 0:01:33]} 27. Qxe5 {[%emt 0:02:00]} Qd7 {[%emt 0:02:27]} 28. Qe7 {[%emt 0:02:09]} Raa8 {[%emt 0:01:17]} 29. d6 {[%emt 0:06:57]} Nxa4 {[%emt 0:03:21]} 30. Qxd7 {[%emt 0:00:47]} Rxd7 {[%emt 0:00:38]} 31. Bxa4 {[%emt 0:00:07]} Rdd8 {[%emt 0:00:13]} 32. d7 {[%emt 0:00:57]} Kh7 {[%emt 0:00:37]} 33. h3 {[%emt 0:00:31]} b6 {[%emt 0:00:49]} 34. Re8 {[%emt 0:00:20]} f6 {[%emt 0:00:26]} 35. Rde1 {[%emt 0:00:55]} 1-0

[Event "Croatian-ch Youth U13 2022"]
[Site "Trogir"]
[Date "2022.06.26"]
[Round "8.7"]
[White "Radalj, Niko"]
[Black "Matkovic, Mihael"]
[Result "1-0"]
[ECO "C78"]
[WhiteElo "1179"]
[BlackElo "1215"]
[Annotator "NA RC"]
[PlyCount "45"]
[EventDate "2022.06.22"]
[EventType "swiss"]
[EventCountry "CRO"]
[SourceTitle "playchess.com"]
[Source "ChessBase"]
[SourceQuality "1"]
[TimeControl "5400+30"]

1. e4 {[%emt 0:01:10]} e5 {[%emt 0:00:04]} 2. Nf3 {[%emt 0:00:10]} Nc6 {[%emt 0:00:17]} 3. Bb5 {[%emt 0:00:13]} a6 {[%emt 0:00:13]} 4. Ba4 {[%emt 0:00:04]} b5 {[%emt 0:00:55]} 5. Bb3 {[%emt 0:00:06]} Nf6 {[%emt 0:00:11]} 6. O-O {[%emt 0:00:36]} Bb4 {[%emt 0:01:13]} 7. c3 {[%emt 0:01:08]} Ba5 {[%emt 0:01:22]} 8. d3 {[%emt 0:01:17]} h6 {[%emt 0:01:27]} 9. Re1 {[%emt 0:00:28]} O-O {[%emt 0:00:47]} 10. Nbd2 {[%emt 0:01:19]} Re8 {[%emt 0:06:35]} 11. Nf1 {[%emt 0:03:04]} Bb7 {[%emt 0:01:14]} 12. Ng3 {[%emt 0:01:58]} Bb6 {[%emt 0:14:25]} 13. h3 {[%emt 0:02:26]} d6 {[%emt 0:01:21]} 14. Nf5 {[%emt 0:04:18]} Ne7 {[%emt 0:13:12]} 15. N3h4 {[%emt 0:05:49]} Nxf5 {[%emt 0:07:36]} 16. Nxf5 {[%emt 0:00:08]} Nh7 {[%emt 0:05:44]} 17. Qg4 {[%emt 0:02:20]} g5 {[%emt 0:12:47]} 18. Nxh6+ {[%emt 0:01:00]} Kf8 {[%emt 0:01:58]} 19. Qf5 {[%emt 0:02:22]} Qf6 {[%emt 0:03:16]} 20. Qxh7 {[%emt 0:03:04]} Qxf2+ {[%emt 0:00:40]} 21. Kh2 {[%emt 0:00:09]} Qf6 {[%emt 0:04:49]} 22. Bxg5 {[%emt 0:02:25]} Qg6 {[%emt 0:00:48]} 23. Qh8+ {[%emt 0:00:22]} 1-0

[Event "Croatian-ch Youth U13 2022"]
[Site "Trogir"]
[Date "2022.06.26"]
[Round "8.10"]
[White "Zagorac, Lara"]
[Black "Paulic, Franka"]
[Result "1-0"]
[ECO "D02"]
[WhiteElo "1482"]
[BlackElo "1067"]
[Annotator "NA RC"]
[PlyCount "121"]
[EventDate "2022.06.22"]
[EventType "swiss"]
[EventCountry "CRO"]
[SourceTitle "playchess.com"]
[Source "ChessBase"]
[SourceQuality "1"]
[TimeControl "5400+30"]

1. d4 {[%emt 0:00:03]} Nf6 {[%emt 0:00:05]} 2. Nf3 {[%emt 0:00:21]} c5 {[%emt 0:00:12]} 3. c3 {[%emt 0:02:56]} e6 {[%emt 0:01:34]} 4. Bf4 {[%emt 0:03:03]} Nc6 {[%emt 0:00:26]} 5. e3 {[%emt 0:02:16]} d5 {[%emt 0:00:29]} 6. Nbd2 {[%emt 0:01:26]} Be7 {[%emt 0:01:44]} 7. Bd3 {[%emt 0:01:12]} Nh5 {[%emt 0:02:40]} 8. Bg3 {[%emt 0:00:56]} Nxg3 {[%emt 0:01:53]} 9. hxg3 {[%emt 0:00:39]} Qb6 {[%emt 0:04:09]} 10. b3 {[%emt 0:11:13]} Bd7 {[%emt 0:01:57]} 11. O-O {[%emt 0:05:30]} h5 {[%emt 0:06:48]} 12. dxc5 {[%emt 0:06:48]} Qxc5 {[%emt 0:01:04]} 13. c4 {[%emt 0:04:46]} Qd6 {[%emt 0:02:16]} 14. cxd5 {[%emt 0:04:17]} exd5 {[%emt 0:01:07]} 15. e4 {[%emt 0:06:47]} h4 {[%emt 0:06:34]} 16. exd5 {[%emt 0:15:02]} Qxd5 {[%emt 0:00:58]} 17. Bc4 {[%emt 0:01:09]} Qf5 {[%emt 0:01:51]} 18. g4 {[%emt 0:13:04]} Qxg4 {[%emt 0:03:10]} 19. Nh2 {[%emt 0:01:13]} Qg6 {[%emt 0:02:27]} 20. Re1 {[%emt 0:02:04]} Kf8 {[%emt 0:01:46]} 21. Ne4 {[%emt 0:01:42]} Bf5 {[%emt 0:01:25]} 22. Qf3 {[%emt 0:00:52]} Bxe4 {[%emt 0:04:01]} 23. Rxe4 {[%emt 0:01:27]} Qf6 {[%emt 0:02:04]} 24. Rae1 {[%emt 0:00:45]} Qxf3 {[%emt 0:00:30]} 25. Nxf3 {[%emt 0:00:07]} g6 {[%emt 0:01:10]} 26. Bd5 {[%emt 0:01:21]} Bd6 {[%emt 0:01:31]} 27. Ng5 {[%emt 0:01:45]} Nd8 {[%emt 0:01:59]} 28. Re8+ {[%emt 0:01:18]} Kg7 {[%emt 0:01:00]} 29. Rxh8 {[%emt 0:00:40]} Kxh8 {[%emt 0:00:35]} 30. Re8+ {[%emt 0:00:16]} Kg7 {[%emt 0:00:51]} 31. Nxf7 {[%emt 0:00:20]} Bc7 {[%emt 0:00:26]} 32. Re7 {[%emt 0:01:29]} Kf6 {[%emt 0:02:08]} 33. Rxc7 {[%emt 0:00:45]} Nxf7 {[%emt 0:00:26]} 34. Rxf7+ {[%emt 0:00:21]} Kg5 {[%emt 0:00:17]} 35. Bc4 {[%emt 0:00:22]} b6 {[%emt 0:00:36]} 36. Rd7 {[%emt 0:01:16]} Kf6 {[%emt 0:00:28]} 37. Rd6+ {[%emt 0:00:12]} Kg7 {[%emt 0:00:22]} 38. Bd3 {[%emt 0:00:09]} Rc8 {[%emt 0:01:00]} 39. Rxg6+ {[%emt 0:00:18]} Kf7 {[%emt 0:00:06]} 40. Rh6 {[%emt 0:00:30]} Rc1+ {[%emt 0:00:26]} 41. Kh2 {[%emt 0:00:09]} Kg7 {[%emt 0:00:06]} 42. Rxh4 {[%emt 0:00:12]} Rd1 {[%emt 0:00:23]} 43. Bc4 {[%emt 0:01:09]} Rd2 {[%emt 0:00:14]} 44. a4 {[%emt 0:00:09]} Rxf2 {[%emt 0:00:05]} 45. Rg4+ {[%emt 0:00:16]} Kh6 {[%emt 0:00:19]} 46. Re4 {[%emt 0:00:30]} Kg5 {[%emt 0:00:17]} 47. Re7 {[%emt 0:00:13]} a5 {[%emt 0:00:12]} 48. Re6 {[%emt 0:00:33]} Rf6 {[%emt 0:00:35]} 49. Rxf6 {[%emt 0:00:16]} Kxf6 {[%emt 0:00:01]} 50. g4 {[%emt 0:00:17]} Kg6 {[%emt 0:00:10]} 51. Kg3 {[%emt 0:00:06]} Kg5 {[%emt 0:00:03]} 52. Kf3 {[%emt 0:00:12]} Kg6 {[%emt 0:00:06]} 53. Kf4 {[%emt 0:00:05]} Kf6 {[%emt 0:00:08]} 54. g5+ {[%emt 0:00:16]} Kg6 {[%emt 0:00:06]} 55. Kg4 {[%emt 0:00:12]} b5 {[%emt 0:00:12]} 56. axb5 {[%emt 0:00:52]} a4 {[%emt 0:00:04]} 57. bxa4 {[%emt 0:00:13]} Kg7 {[%emt 0:00:03]} 58. b6 {[%emt 0:00:15]} Kg6 {[%emt 0:00:14]} 59. b7 {[%emt 0:00:07]} Kg7 {[%emt 0:00:07]} 60. b8=Q {[%emt 0:00:35]} Kg6 {[%emt 0:00:11]} 61. Qe8+ {[%emt 0:00:25]} 1-0

[Event "Croatian-ch Youth U13 2022"]
[Site "Trogir"]
[Date "2022.06.26"]
[Round "8.11"]
[White "Zagar, Lara Marija"]
[Black "Vucenovic, Diara"]
[Result "0-1"]
[ECO "D02"]
[WhiteElo "1272"]
[BlackElo "1352"]
[Annotator "NA RC"]
[PlyCount "42"]
[EventDate "2022.06.22"]
[EventType "swiss"]
[EventCountry "CRO"]
[SourceTitle "playchess.com"]
[Source "ChessBase"]
[SourceQuality "1"]
[TimeControl "5400+30"]

1. Nf3 {[%emt 0:00:01]} d5 {[%emt 0:00:06]} 2. d4 {[%emt 0:00:15]} Nc6 {[%emt 0:00:37]} 3. g3 {[%emt 0:00:17]} Bg4 {[%emt 0:02:17]} 4. Bg2 {[%emt 0:00:31]} e6 {[%emt 0:01:08]} 5. c4 {[%emt 0:02:37]} Bb4+ {[%emt 0:07:32]} 6. Nc3 {[%emt 0:05:34]} Nge7 {[%emt 0:03:00]} 7. c5 {[%emt 0:07:12]} O-O {[%emt 0:01:04]} 8. Qd2 {[%emt 0:05:31]} Bxf3 {[%emt 0:12:34]} 9. Bxf3 {[%emt 0:01:07]} Nf5 {[%emt 0:01:29]} 10. a3 {[%emt 0:07:37]} Bxc3 {[%emt 0:03:25]} 11. bxc3 {[%emt 0:00:25]} Nce7 {[%emt 0:10:38]} 12. O-O {[%emt 0:09:36]} Ng6 {[%emt 0:02:30]} 13. Qc2 {[%emt 0:09:23]} Qf6 {[%emt 0:03:39]} 14. e4 {[%emt 0:02:33]} Nxd4 {[%emt 0:01:10]} 15. cxd4 {[%emt 0:02:06]} Qxf3 {[%emt 0:00:32]} 16. e5 {[%emt 0:01:21]} f6 {[%emt 0:03:02]} 17. exf6 {[%emt 0:05:28]} gxf6 {[%emt 0:03:03]} 18. Re1 {[%emt 0:02:16]} Qg4 {[%emt 0:01:56]} 19. Bb2 {[%emt 0:03:09]} Nh4 {[%emt 0:01:58]} 20. Kh1 {[%emt 0:01:27]} Kh8 {[%emt 0:00:53]} 21. Kg1 {[%emt 0:00:17]} Qf3 0-1

[Event "Croatian-ch Youth U13 2022"]
[Site "Trogir"]
[Date "2022.06.27"]
[Round "9.2"]
[White "Pehar, Borna"]
[Black "Tadic, Jure"]
[Result "1-0"]
[ECO "C47"]
[WhiteElo "1756"]
[BlackElo "1565"]
[Annotator "NA RC"]
[PlyCount "61"]
[EventDate "2022.06.22"]
[EventType "swiss"]
[EventCountry "CRO"]
[SourceTitle "playchess.com"]
[Source "ChessBase"]
[SourceQuality "1"]
[TimeControl "5400+30"]

1. e4 {[%emt 0:00:05]} e5 {[%emt 0:00:10]} 2. Nf3 {[%emt 0:00:09]} Nc6 {[%emt 0:00:14]} 3. Nc3 {[%emt 0:00:26]} Nf6 {[%emt 0:00:16]} 4. d4 {[%emt 0:00:19]} exd4 {[%emt 0:02:24]} 5. Nxd4 {[%emt 0:00:16]} Bb4 {[%emt 0:01:12]} 6. Nxc6 {[%emt 0:00:17]} bxc6 {[%emt 0:08:27]} 7. Bd3 {[%emt 0:00:26]} h6 {[%emt 0:01:02]} 8. O-O {[%emt 0:01:19]} d6 {[%emt 0:01:59]} 9. Re1 {[%emt 0:09:24]} O-O {[%emt 0:01:49]} 10. a3 {[%emt 0:01:17]} Bc5 {[%emt 0:06:58]} 11. Na4 {[%emt 0:00:46]} Bb6 {[%emt 0:00:38]} 12. Nxb6 {[%emt 0:02:22]} cxb6 {[%emt 0:01:05]} 13. h3 {[%emt 0:03:03]} Re8 {[%emt 0:08:52]} 14. Bf4 {[%emt 0:04:18]} d5 {[%emt 0:05:00]} 15. e5 {[%emt 0:02:46]} Nd7 {[%emt 0:00:59]} 16. Qh5 {[%emt 0:08:32]} d4 {[%emt 0:20:32]} 17. Bc4 {[%emt 0:04:58]} Rf8 {[%emt 0:05:28]} 18. e6 {[%emt 0:02:02]} Nf6 {[%emt 0:00:27]} 19. exf7+ {[%emt 0:05:49]} Kh8 {[%emt 0:00:47]} 20. Qg6 {[%emt 0:01:00]} b5 {[%emt 0:08:31]} 21. Bxh6 {[%emt 0:00:58]} gxh6 {[%emt 0:00:50]} 22. Qxh6+ {[%emt 0:00:13]} Nh7 {[%emt 0:00:09]} 23. Re8 {[%emt 0:01:32]} bxc4 {[%emt 0:04:17]} 24. Rxd8 {[%emt 0:00:55]} Rxd8 {[%emt 0:00:08]} 25. Qxc6 {[%emt 0:00:29]} Bf5 {[%emt 0:01:22]} 26. Re1 {[%emt 0:03:35]} Rac8 {[%emt 0:04:25]} 27. Qb5 {[%emt 0:03:26]} Bxc2 {[%emt 0:03:31]} 28. Qe5+ {[%emt 0:00:16]} Nf6 {[%emt 0:00:07]} 29. Qxf6+ {[%emt 0:00:13]} Kh7 {[%emt 0:00:05]} 30. f8=N+ {[%emt 0:01:06]} Kg8 {[%emt 0:00:57]} 31. Re7 {[%emt 0:00:01]} 1-0